bitfinex-derivatives/quotes_ETHF0:USTF0_20250524
["timestamp","ask_amount","ask_price","bid_price","bid_amount"]
[1748104751610,2.17336,2553.5,2553.4,1.3284]
[1748104751811,0.783,2553.3,2553.2,0.78302]
[1748104752004,2.0905,2553.4,2553.3,0.783]
[1748104752510,2.0905,2553.4,2553.3,1.36398438]
[1748104752711,2.87348,2553.4,2553.3,0.58098438]
[1748104752911,2.87348,2553.4,2553.3,1.36398438]
[1748104753110,2.87348,2553.4,2553.3,2.73678438]
[1748104756517,2.87348,2553.4,2553.3,1.95378438]
[1748104757118,2.87348,2553.4,2553.3,2.73678438]
[1748104757319,2.0905,2553.4,2553.3,2.73678438]
[1748104757721,0.7001,2553.4,2553.3,2.73678438]
[1748104758020,0.07549626,2553.6,2553.5,0.78294]
[1748104758818,0.07549626,2553.6,2553.5,2.13524]
[1748104759515,0.07549626,2553.6,2553.5,2.71622438]
[1748104759921,0.07549626,2553.6,2553.5,4.13432438]
[1748104760220,1.3066,2553.8,2553.7,0.78288]
[1748104761419,1.3066,2553.8,2553.7,1.36386438]
[1748104761622,2.08945,2553.8,2553.7,0.58098438]
[1748104761922,2.08945,2553.8,2553.7,1.90658438]
[1748104762321,2.08945,2553.8,2553.7,2.68946438]
[1748104762518,1.3066,2553.8,2553.7,2.68946438]
[1748104764129,2.5901,2554.0,2553.8,0.78283]
[1748104764317,0.78284,2553.9,2553.8,1.4178]
[1748104764518,2.08034,2553.9,2553.8,1.4178]
[1748104765021,2.08034,2553.9,2553.8,2.20065]
[1748104765724,2.08034,2553.9,2553.8,2.78163438]
[1748104766527,2.08034,2553.9,2553.8,1.99878438]
[1748104768030,1.2975,2553.9,2553.8,2.78163438]
[1748104768227,2.07541,2554.0,2553.9,0.78282]
[1748104768428,2.07541,2554.0,2553.9,2.10662]
[1748104768626,1.3905,2554.1,2554.0,0.78279]
[1748104768831,3.99053,2554.2,2554.1,0.78276]
[1748104769624,0.78273,2554.2,2554.1,0.78276]
[1748104770324,0.78276,2554.1,2554.0,2.10656]
[1748104770724,0.78276,2554.1,2554.0,2.68754438]
[1748104771432,2.7296,2554.3,2554.0,1.90478438]
[1748104771732,0.78273,2554.2,2554.1,1.2918]
[1748104772126,0.78273,2554.2,2554.1,2.07456]
[1748104772330,0.78273,2554.2,2554.1,2.65554438]
[1748104772630,0.78273,2554.2,2554.1,1.87278438]
[1748104773127,2.19003,2554.2,2554.1,2.65554438]
[1748104774434,2.26552626,2554.2,2554.1,2.65554438]
[1748104774828,2.26552626,2554.2,2554.1,2.07456]
[1748104775626,0.07549626,2554.2,2554.1,2.07456]
[1748104778035,0.07549626,2554.2,2554.1,2.65572705]
[1748104778229,0.85822626,2554.2,2554.1,1.87296705]
[1748104778428,2.91492626,2554.2,2554.1,1.87296705]
[1748104778824,2.91492626,2554.2,2554.1,0.58116705]
[1748104779432,0.78279,2554.0,2553.9,0.00588016]
[1748104780543,0.78279,2554.0,2553.9,0.58727428]
[1748104780843,0.78279,2554.0,2553.9,1.37009428]
[1748104783048,0.78279,2554.0,2553.9,0.58727428]
[1748104785446,0.78279,2554.0,2553.9,1.37009428]
[1748104786948,0.78279,2554.0,2553.9,0.58727428]
[1748104787647,0.78279,2554.0,2553.9,1.37009428]
[1748104788849,1.4106,2554.1,2554.0,0.78279]
[1748104789148,4.72894626,2554.2,2554.1,0.78276]
[1748104789752,4.65345,2554.2,2554.1,2.78946]
[1748104790250,1.44565,2554.2,2554.1,2.0067]
[1748104790652,1.44565,2554.2,2554.1,2.58809412]
[1748104791150,1.44565,2554.2,2554.1,3.37085412]
[1748104792552,1.44565,2554.2,2554.1,2.58809412]
[1748104792754,1.44565,2554.2,2554.1,3.37085412]
[1748104793253,1.44565,2554.2,2554.1,2.58809412]
[1748104795454,0.78275,2554.2,2554.1,3.37085412]
[1748104796957,0.78275,2554.2,2554.1,2.58809412]
[1748104797654,0.78275,2554.2,2554.1,3.37085412]
[1748104800461,0.78275,2554.2,2554.1,2.58809412]
[1748104800651,0.78275,2554.2,2554.1,0.58139412]
[1748104800852,6.03185,2554.2,2554.1,0.58139412]
[1748104801654,11.03185,2554.2,2554.1,0.58139412]
[1748104802663,10.2491,2554.2,2553.9,0.57294207]
[1748104802963,0.78291,2553.6,2553.5,0.56706191]
[1748104803156,18.40091,2553.6,2553.5,0.56706191]
[1748104803563,20.46481,2553.6,2553.5,0.56706191]
[1748104804564,0.78297,2553.4,2553.3,0.00588016]
[1748104806269,19.6819,2553.6,2553.5,0.78294]
[1748104806454,0.7829,2553.7,2553.4,2.7162]
[1748104806659,3.2078,2553.7,2553.6,0.78291]
[1748104806859,20.8268,2553.7,2553.6,0.78291]
[1748104807161,17.619,2553.7,2553.6,0.78291]
[1748104807464,0.64858016,2553.8,2553.6,0.78291]
[1748104807665,1.43143016,2553.8,2553.7,1.3482]
[1748104807863,17.62488016,2553.8,2553.7,2.13108]
[1748104808259,18.40773016,2553.8,2553.7,2.13108]
[1748104809066,18.40773016,2553.8,2553.7,1.3482]
[1748104809765,0.00588016,2553.8,2553.7,2.13108]
[1748104810262,0.78873016,2553.8,2553.7,1.3482]
[1748104810868,0.78873016,2553.8,2553.7,2.13108]
[1748104812170,0.78873016,2553.8,2553.7,1.3482]
[1748104812763,0.78873016,2553.8,2553.7,2.13108]
[1748104813371,0.78873016,2553.8,2553.7,1.3482]
[1748104813873,0.00588016,2553.8,2553.7,2.13108]
[1748104815373,0.00588016,2553.8,2553.7,2.71034599]
[1748104817367,0.00588016,2553.8,2553.7,3.2774079]
[1748104820572,4.5019,2554.4,2554.3,0.78269]
[1748104820772,5.28457,2554.4,2554.3,0.78269]
[1748104821373,0.7827,2554.3,2554.2,0.78271]
[1748104822068,0.78273,2554.2,2554.1,0.78274]
[1748104822268,0.78272,2554.3,2554.2,0.78273]
[1748104822778,0.78273,2554.2,2554.1,0.78273]
[1748104822971,0.78271,2554.3,2554.2,0.78272]
[1748104823276,0.78273,2554.2,2554.1,0.78274]
[1748104823575,0.78272,2554.3,2554.2,0.78272]
[1748104825472,0.78272,2554.3,2554.2,1.48532]
[1748104827474,5.28458,2554.4,2554.3,0.78269]
[1748104827678,5.28456,2554.4,2554.3,0.78269]
[1748104827879,3.99046,2554.4,2554.3,1.3035]
[1748104829681,0.78273,2554.2,2554.1,0.78274]
[1748104829880,0.78273,2554.2,2554.1,2.08624]
[1748104830481,2.11882,2554.3,2554.2,0.78273]
[1748104830681,2.11882,2554.3,2554.2,2.14123]
[1748104831083,1.3361,2554.3,2554.2,2.14123]
[1748104831276,3.99048,2554.4,2554.3,0.78269]
[1748104831478,3.99048,2554.4,2554.3,2.14119]
[1748104832283,3.2078,2554.4,2554.3,2.14119]
[1748104832777,3.99046,2554.4,2554.3,2.14119]
[1748104834483,3.28329626,2554.4,2554.3,2.14119]
[1748104836385,4.06595626,2554.4,2554.3,2.14119]
[1748104836583,0.85815626,2554.4,2554.3,2.14119]
[1748104836882,0.07549626,2554.4,2554.3,2.14119]
[1748104837076,0.07549626,2554.4,2554.3,2.72061354]
[1748104843287,0.85815626,2554.4,2554.3,2.72061354]
[1748104845290,0.07549626,2554.4,2554.3,2.72061354]
[1748104846390,0.85815626,2554.4,2554.3,2.72061354]
[1748104848792,0.85815626,2554.4,2554.3,1.93792354]
[1748104852895,0.85815626,2554.4,2554.3,2.72061354]
[1748104855390,0.85815626,2554.4,2554.3,1.93792354]
[1748104855592,0.85815626,2554.4,2554.3,2.72061354]
[1748104857090,0.07549626,2554.4,2554.3,2.72061354]
[1748104857590,0.07549626,2554.4,2554.3,3.28767545]
[1748104861502,6.26e-06,2554.4,2554.3,3.28767545]
[1748104862404,6.26e-06,2554.4,2554.3,18.73767545]
[1748104862700,0.78266626,2554.4,2554.3,3.28767545]
[1748104862999,0.78266626,2554.4,2554.3,2.72061354]
[1748104863603,6.26e-06,2554.4,2554.3,2.72061354]
[1748104865500,3.2078,2555.3,2554.3,10.85133354]
[1748104865799,0.6741,2555.2,2555.1,0.78245]
[1748104866599,3.99019,2555.3,2555.2,0.78242]
[1748104866797,3.2078,2555.3,2555.2,0.78242]
[1748104867506,3.2078,2555.3,2555.2,2.07182]
[1748104867809,3.99019,2555.3,2555.2,1.2894]
[1748104868209,3.99019,2555.3,2555.2,2.07182]
[1748104868411,3.99019,2555.3,2555.2,1.2894]
[1748104868612,5.38149,2555.3,2555.2,2.07182]
[1748104868811,3.2078,2555.3,2555.2,2.07182]
[1748104870811,3.99019,2555.3,2555.2,2.07182]
[1748104871112,3.2078,2555.3,2555.2,2.07182]
[1748104875231,3.2078,2555.6,2555.2,1.2894]
[1748104875430,3.2078,2555.6,2555.5,0.78233]
[1748104876629,3.9901,2555.6,2555.5,0.78233]
[1748104876930,0.78234,2555.5,2555.1,15.427]
[1748104877226,0.78233,2555.5,2555.4,2.15864]
[1748104877630,4.5299,2555.6,2555.4,2.15864]
[1748104877821,1.3221,2555.5,2555.4,2.15864]
[1748104878023,2.10443,2555.5,2555.4,1.3763]
[1748104878224,2.10443,2555.5,2555.4,2.15866]
[1748104879229,2.10443,2555.5,2555.4,1.3763]
[1748104880025,2.17992626,2555.5,2555.4,0.78236]
[1748104880426,0.78245,2555.1,2555.0,3.2078]
[1748104880725,0.78248,2555.0,2554.9,3.32419806]
[1748104880925,0.78248,2555.0,2554.9,2.75718016]
[1748104882234,0.78248,2555.0,2554.9,0.00588016]
[1748104882626,2.19218,2555.0,2554.9,0.00588016]
[1748104884033,7.19218,2555.0,2554.9,0.00588016]
[1748104884335,2.19218,2555.0,2554.9,0.00588016]
[1748104884533,7.19218,2555.0,2554.9,0.00588016]
[1748104884728,0.78266,2554.4,2554.3,14.66271903]
[1748104885032,0.78265,2554.5,2554.3,14.66271903]
[1748104885233,0.78265,2554.5,2554.3,16.01521903]
[1748104885432,2.88155,2554.5,2554.4,0.78266]
[1748104886128,0.78266,2554.4,2554.3,16.01521903]
[1748104886329,2.18616,2554.4,2554.3,14.66271903]
[1748104889630,0.78269,2554.3,2554.2,0.78858016]
[1748104889839,5.30939,2554.3,2554.2,0.00588016]
[1748104894143,38.35339,2554.3,2554.2,0.00588016]
[1748104895138,5.30939,2554.3,2554.2,0.00588016]
[1748104895333,38.42888626,2554.3,2554.2,0.00588016]
[1748104896947,5.38488626,2554.3,2554.2,0.00588016]
[1748104897243,38.43088626,2554.3,2554.2,0.00588016]
[1748104898147,5.38488626,2554.3,2554.2,0.00588016]
[1748104898449,0.07549626,2554.3,2554.2,0.78861016]
[1748104898645,0.07549626,2554.3,2554.2,5.78861016]
[1748104899451,0.07549626,2554.3,2554.2,0.78861016]
[1748104900358,0.07549626,2554.3,2554.2,5.78861016]
[1748104900552,0.00588016,2554.7,2554.6,0.7826]
[1748104902146,0.00588016,2554.7,2554.6,3.9904]
[1748104903658,0.00588016,2554.7,2554.6,4.6543]
[1748104907661,0.00588016,2554.7,2554.6,1.4465]
[1748104908655,0.00588016,2554.7,2554.6,4.6543]
[1748104909158,0.78845016,2554.7,2554.6,0.6639]
[1748104909662,0.86394642,2554.7,2554.6,0.6639]
[1748104910552,0.86394642,2554.7,2554.6,2.019]
[1748104911759,1.51514642,2554.7,2554.6,2.019]
[1748104912455,1.51514642,2554.7,2554.6,1.3551]
[1748104912652,0.73257642,2554.7,2554.4,0.6742]
[1748104912964,0.78263,2554.5,2554.4,0.6742]
[1748104913151,17.614,2554.5,2554.2,1.35559806]
[1748104913357,1.9772,2554.4,2554.2,1.35559806]
[1748104913556,2.75989,2554.4,2554.2,2.69069806]
[1748104913753,0.78269,2554.3,2554.2,2.69069806]
[1748104914166,2.75988,2554.4,2554.3,0.57928255]
[1748104914366,2.75988,2554.4,2554.3,1.91438255]
[1748104915863,2.75988,2554.4,2554.3,1.3351]
[1748104916668,2.75988,2554.4,2554.2,0.00588016]
[1748104916669,0.78269,2554.3,2554.2,0.00588016]
[1748104916864,2.85289,2554.3,2554.2,0.00588016]
[1748104917761,2.85289,2554.3,2554.2,1.37438016]
[1748104917961,2.85289,2554.3,2554.2,0.00588016]
[1748104922371,6.06069,2554.3,2554.2,0.00588016]
[1748104925169,0.78285,2553.8,2553.7,3.2078]
[1748104925470,18.39885,2553.8,2553.7,3.2078]
[1748104926169,18.39985,2553.8,2553.7,3.7868729]
[1748104926370,18.39985,2553.8,2553.7,4.5697529]
[1748104926571,18.39985,2553.8,2553.7,3.7868729]
[1748104927172,18.39985,2553.8,2553.7,3.2078]
[1748104928672,18.39985,2553.8,2553.7,4.5341]
[1748104928976,18.39985,2553.8,2553.7,5.31698]
[1748104929176,18.39985,2553.8,2553.7,4.5341]
[1748104929377,3.88320534,2555.1,2553.7,4.5341]
[1748104929578,2.7305,2554.5,2554.2,0.78273]
[1748104929874,3.2078,2554.3,2554.2,0.78273]
[1748104930279,3.2078,2554.3,2554.1,0.78274]
[1748104930478,3.2078,2554.3,2554.0,2.0178]
[1748104930479,17.618,2554.4,2554.2,2.10901]
[1748104930669,18.40066,2554.4,2554.3,2.0058]
[1748104933582,18.40066,2554.4,2554.3,2.78849]
[1748104933780,1.47294,2554.5,2554.3,2.0058]
[1748104934079,17.617,2554.5,2554.4,0.78265]
[1748104934477,17.617,2554.5,2554.4,2.13205]
[1748104934679,3.99042,2554.6,2554.4,2.13205]
[1748104934974,0.00588016,2554.7,2554.6,0.7826]
[1748104935281,18.40447016,2554.7,2554.5,2.81641]
[1748104935581,18.40447016,2554.7,2554.6,1.3494]
[1748104939987,18.47996642,2554.7,2554.6,1.3494]
[1748104945087,19.80966642,2554.7,2554.6,1.3494]
[1748104947085,2.19366642,2554.7,2554.6,1.3494]
[1748104947285,18.47896642,2554.7,2554.6,1.3494]
[1748104953396,0.78266,2554.4,2554.3,0.6795]
[1748104954401,0.78266,2554.4,2554.3,1.25874765]
[1748104954597,0.78266,2554.4,2554.3,3.45293765]
[1748104955596,0.78266,2554.4,2554.3,2.67024765]
[1748104956003,0.78266,2554.4,2554.3,3.45293765]
[1748104957105,0.78266,2554.4,2554.3,2.67024765]
[1748104958201,0.78266,2554.4,2554.3,3.45293765]
[1748104958403,0.78266,2554.4,2554.3,2.67024765]
[1748104958702,0.78266,2554.4,2554.3,3.45293765]
[1748104959704,1.49126,2554.4,2554.3,3.45293765]
[1748104959898,0.7086,2554.4,2554.3,3.45293765]
[1748104960102,1.49126,2554.4,2554.3,3.45293765]
[1748104960401,17.614,2554.5,2554.4,0.78266]
[1748104960603,0.78997642,2554.7,2554.4,1.3746]
[1748104960801,17.614,2554.6,2554.4,2.15725]
[1748104961004,18.3966,2554.6,2554.5,1.3746]
[1748104962205,18.3966,2554.6,2554.5,1.95384765]
[1748104963603,19.784,2554.6,2554.5,1.95384765]
[1748104970010,19.784,2554.6,2554.5,0.57924765]
[1748104970413,19.85949626,2554.6,2554.5,0.57924765]
[1748104978708,1.46289626,2554.6,2554.5,1.36187765]
[1748104978915,0.07549626,2554.6,2554.5,5.94297765]
[1748104980014,0.07549626,2554.6,2554.5,6.69905063]
[1748104982019,17.615,2555.2,2555.1,0.78243]
[1748104982218,17.615,2555.2,2554.6,2.0359]
[1748104982219,0.78246,2555.1,2554.6,2.0359]
[1748104982519,0.78248,2555.0,2554.9,0.78249]
[1748104982720,0.78248,2555.0,2554.9,1.3514]
[1748104983417,0.78248,2555.0,2554.9,1.93064765]
[1748104983618,0.78248,2555.0,2554.9,2.71315765]
[1748104984621,0.85797626,2555.0,2554.9,2.71315765]
[1748104984812,0.07549626,2555.0,2554.9,2.71315765]
[1748104987208,0.07549626,2555.0,2554.9,3.2807023]
[1748104991017,0.07549626,2555.0,2554.9,2.71315765]
[1748104992621,0.07549626,2555.0,2554.9,1.93064765]
[1748104992818,0.85797626,2555.0,2554.9,0.57924765]
[1748104993018,2.27607626,2555.0,2554.9,0.57924765]
[1748104993925,7.27607626,2555.0,2554.9,0.57924765]
[1748104994127,0.78254,2554.8,2554.7,0.00588016]
[1748104994326,16.14654,2554.8,2554.7,0.00588016]
[1748104995626,19.35434,2554.8,2554.7,0.00588016]
[1748104997926,3.99034,2554.8,2554.7,0.00588016]
[1748104998120,36.96834,2554.8,2554.7,0.00588016]
[1748104999121,3.99034,2554.8,2554.7,0.00588016]
[1748104999326,18.39454,2554.8,2554.7,0.00588016]
[1748104999527,22.92934,2554.8,2554.7,0.00588016]
[1748105000825,23.00483626,2554.8,2554.7,0.00588016]
[1748105005025,23.00583626,2554.8,2554.7,0.00588016]
[1748105006832,5.39283626,2554.8,2554.7,0.00588016]
[1748105007033,38.37183626,2554.8,2554.7,0.00588016]
[1748105008632,20.75883626,2554.8,2554.7,0.00588016]
[1748105008834,37.04483626,2554.8,2554.7,0.00588016]
[1748105009037,4.06583626,2554.8,2554.7,0.71208016]
[1748105009334,21.67883626,2554.8,2554.7,0.71208016]
[1748105010334,21.67883626,2554.8,2554.7,2.05478016]
[1748105011130,4.06583626,2554.8,2554.7,2.05478016]
[1748105011332,21.67883626,2554.8,2554.7,2.05478016]
[1748105011938,4.06583626,2554.8,2554.7,2.83735016]
[1748105012537,21.67883626,2554.8,2554.7,2.83735016]
[1748105013039,0.07549626,2554.8,2554.7,2.83735016]
[1748105014233,0.85803626,2554.8,2554.7,2.05478016]
[1748105016840,0.85803626,2554.8,2554.7,2.83735016]
[1748105017043,0.85803626,2554.8,2554.7,2.05478016]
[1748105019444,0.85803626,2554.8,2554.7,2.63476642]
[1748105020448,0.85803626,2554.8,2554.7,3.41733642]
[1748105021047,0.85803626,2554.8,2554.7,2.63476642]
[1748105022154,0.86272209,2554.8,2554.7,2.63476642]
[1748105025261,0.86272209,2554.8,2554.7,3.41733642]
[1748105025561,0.86272209,2554.8,2554.7,2.63476642]
[1748105026561,0.86272209,2554.8,2554.7,3.41733642]
[1748105027557,0.86272209,2554.8,2554.7,2.63476642]
[1748105028563,0.86272209,2554.8,2554.7,3.41733642]
[1748105031462,0.08018209,2554.8,2554.7,3.41733642]
[1748105032767,0.08018209,2554.8,2554.7,4.1734094]
[1748105034163,0.08018209,2554.8,2554.7,3.41733642]
[1748105037665,0.08018209,2554.8,2554.7,3.98545397]
[1748105038864,0.08018209,2554.8,2554.7,3.41733642]
[1748105041568,1.40518209,2554.8,2554.7,3.41733642]
[1748105041962,1.40518209,2554.8,2554.7,3.98555254]
[1748105042271,2.18772209,2554.8,2554.7,3.27935254]
[1748105042464,2.18772209,2554.8,2554.7,2.49678254]
[1748105042769,2.18772209,2554.8,2554.7,3.27935254]
[1748105043363,1.40518209,2554.8,2554.7,3.27935254]
[1748105048274,0.08018209,2554.8,2554.7,3.27935254]
[1748105049373,0.08018209,2554.8,2554.7,3.4672094]
[1748105053072,0.08018209,2554.8,2554.7,8.4672094]
[1748105053471,0.08018209,2554.8,2554.7,3.4672094]
[1748105054161,21.53238016,2555.2,2554.7,3.4672094]
[1748105054162,3.21368016,2555.2,2555.1,0.78245]
[1748105054972,3.21368016,2555.2,2555.1,3.88539806]
[1748105055270,0.00588016,2555.2,2555.1,7.09319806]
[1748105056572,0.00588016,2555.2,2555.1,7.28110924]
[1748105057771,0.00588016,2555.2,2555.1,6.52503626]
[1748105059675,0.08137642,2555.2,2555.1,7.09239905]
[1748105061473,0.78587642,2555.2,2555.1,7.09239905]
[1748105066079,0.78587642,2555.2,2555.1,3.88459905]
[1748105066380,0.08137642,2555.2,2555.1,3.88459905]
[1748105067280,0.08137642,2555.2,2555.1,3.31723626]
[1748105070382,0.08137642,2555.2,2555.1,3.8843316]
[1748105072279,0.08137642,2555.2,2555.1,3.2391316]
[1748105072578,0.73577642,2555.2,2555.1,3.2391316]
[1748105074885,0.73577642,2555.2,2555.1,1.9295316]
[1748105075180,2.18329642,2555.2,2555.1,1.1470816]
[1748105075383,3.51209642,2555.2,2555.1,1.1470816]
[1748105075781,8.51209642,2555.2,2555.1,1.1470816]
[1748105075977,8.51209642,2555.2,2555.1,0.57998626]
[1748105076486,0.78251,2554.9,2554.8,0.56709534]
[1748105076687,18.39051,2554.9,2554.8,0.56709534]
[1748105077186,19.71931,2554.9,2554.8,1.34963534]
[1748105077579,19.71931,2554.9,2554.8,0.78254]
[1748105077775,18.9368,2554.9,2554.8,0.78254]
[1748105077988,0.78254,2554.8,2554.7,0.78843016]
[1748105078192,2.81644,2554.8,2554.7,0.78843016]
[1748105078486,20.42444,2554.8,2554.7,0.78843016]
[1748105079290,2.81644,2554.8,2554.7,0.00588016]
[1748105079483,20.42644,2554.8,2554.7,0.00588016]
[1748105083393,2.0339,2554.8,2554.7,0.78845016]
[1748105083593,3.2078,2555.0,2554.9,0.78251]
[1748105083789,21.60128,2555.0,2554.8,2.79942]
[1748105084091,0.78251,2554.9,2554.8,2.79942]
[1748105084288,2.19901,2554.9,2554.8,2.79942]
[1748105084794,3.2078,2555.0,2554.9,0.78251]
[1748105085093,21.60128,2555.0,2554.9,1.3194]
[1748105085493,3.2078,2555.0,2554.9,2.10191]
[1748105088295,3.9029,2555.1,2555.0,0.78248]
[1748105088488,3.9029,2555.1,2555.0,2.06708]
[1748105088886,3.2078,2555.1,2555.0,2.06708]
[1748105089594,0.08137642,2555.2,2555.1,0.78245]
[1748105089796,0.08137642,2555.2,2555.1,2.10075]
[1748105090194,0.00588016,2555.2,2555.1,2.10075]
[1748105090394,0.00588016,2555.2,2555.1,3.38935]
[1748105091490,0.00588016,2555.2,2555.1,3.96728207]
[1748105092701,0.00588016,2555.2,2555.1,1.36038207]
[1748105092898,0.67978016,2555.2,2555.1,1.36038207]
[1748105093301,2.03828016,2555.2,2555.1,1.36038207]
[1748105094409,2.03828016,2555.2,2555.1,0.78245]
[1748105097419,2.03828016,2555.2,2555.1,1.36039129]
[1748105098421,0.00588016,2555.2,2555.1,1.36039129]
[1748105100319,0.00588016,2555.2,2555.1,2.72359129]
[1748105102015,0.78830016,2555.2,2555.1,1.26194129]
[1748105102220,5.31330016,2555.2,2555.1,0.57794129]
[1748105102413,0.78248,2555.0,2554.9,0.56709534]
[1748105103121,2.09968,2555.0,2554.9,0.56709534]
[1748105103317,2.09968,2555.0,2554.9,1.34960534]
[1748105103620,2.17517626,2555.0,2554.9,0.78251]
[1748105104423,0.78251,2554.9,2554.8,2.07772]
[1748105104719,23.61341,2554.9,2554.8,2.07772]
[1748105106823,20.40561,2554.9,2554.8,2.07772]
[1748105107021,0.07549626,2555.0,2554.9,0.78251]
[1748105107222,17.68649626,2555.0,2554.9,1.49061]
[1748105107423,18.46897626,2555.0,2554.9,2.006]
[1748105107624,19.76107626,2555.0,2554.9,1.2979]
[1748105108615,0.78254,2554.8,2554.7,0.71498016]
[1748105108816,0.78254,2554.8,2554.7,0.00588016]
[1748105109319,2.80454,2554.8,2554.7,0.00588016]
[1748105110523,2.80454,2554.8,2554.7,0.78845016]
[1748105114118,2.022,2554.8,2554.7,0.78845016]
[1748105114727,2.80454,2554.8,2554.7,0.78845016]
[1748105115220,2.022,2554.8,2554.7,0.78845016]
[1748105115420,1.3665,2554.8,2554.7,0.78845016]
[1748105115929,2.14904,2554.8,2554.7,0.00588016]
[1748105116120,2.14904,2554.8,2554.7,0.78845016]
[1748105116321,1.3665,2554.8,2554.7,2.09435016]
[1748105117032,2.14904,2554.8,2554.7,2.09435016]
[1748105117224,2.81944,2554.8,2554.7,1.31178016]
[1748105117629,2.81944,2554.8,2554.7,0.00588016]
[1748105118432,18.10944,2554.8,2554.7,0.00588016]
[1748105120634,18.18493626,2554.8,2554.7,0.00588016]
[1748105124832,23.18493626,2554.8,2554.7,1.6e-07]
[1748105126237,26.30085361,2554.8,2554.7,1.6e-07]
[1748105127535,23.18493626,2554.8,2554.7,1.6e-07]
[1748105128037,23.4956251,2554.8,2554.7,1.6e-07]
[1748105130834,0.78279,2554.0,2553.9,1.3388]
[1748105131040,32.909,2554.0,2553.3,0.56709534]
[1748105131240,0.78297,2553.4,2553.3,1.27149534]
[1748105132536,0.78297,2553.4,2553.3,3.23969534]
[1748105132838,18.5028,2553.4,2553.1,0.00588016]
[1748105133038,0.78303,2553.2,2553.1,0.00588016]
[1748105133637,2.19023,2553.2,2553.1,0.00588016]
[1748105133842,0.00588016,2553.6,2553.1,0.00588016]
[1748105134038,0.78299,2553.4,2553.2,0.78301]
[1748105134234,0.00588016,2553.6,2553.3,2.6589]
[1748105134436,2.34253933,2553.6,2553.5,0.78294]
[1748105134643,0.78294,2553.5,2553.4,2.11225]
[1748105134842,0.78294,2553.5,2553.4,1.3293]
[1748105137845,0.78294,2553.5,2553.4,2.11227]
[1748105138035,0.78294,2553.5,2553.4,1.3293]
[1748105150146,0.85843626,2553.5,2553.4,1.3293]
[1748105153041,18.47943626,2553.5,2553.4,1.3293]
[1748105155249,0.85843626,2553.5,2553.4,1.3293]
[1748105155450,0.07549626,2553.5,2553.4,2.11227]
[1748105155650,0.07549626,2553.5,2553.4,5.32007]
[1748105155948,2.33665917,2553.9,2553.8,0.78285]
[1748105156143,2.33665917,2553.9,2553.8,3.99065]
[1748105156349,2.33665917,2553.9,2553.8,8.99065]
[1748105156552,0.38735018,2553.9,2553.8,8.99065]
[1748105156756,2.34137852,2554.5,2554.4,0.78266]
[1748105157051,3.12400852,2554.5,2554.3,0.78267]
[1748105157250,3.12400852,2554.5,2554.4,0.6646]
[1748105158351,3.12400852,2554.5,2554.4,2.0334]
[1748105158547,0.78263,2554.5,2554.4,2.0334]
[1748105158744,3.2078,2556.3,2555.2,0.78242]
[1748105158947,6.34183847,2555.3,2555.2,19.27422]
[1748105159141,6.34183847,2555.3,2555.2,24.27422]
[1748105159953,0.78224,2555.8,2555.5,0.78233]
[1748105160152,0.78224,2555.8,2555.7,3.2078]
[1748105160652,32.901,2556.1,2555.7,3.2078]
[1748105160856,0.78218,2556.0,2555.8,1.3028]
[1748105161550,2.08388,2556.0,2555.8,1.3028]
[1748105161850,1.3017,2556.0,2555.9,0.7822]
[1748105162055,2.08389,2556.0,2555.8,1.3028]
[1748105163151,0.7822,2555.9,2555.8,1.3028]
[1748105165049,0.07549626,2556.0,2555.9,0.7822]
[1748105165255,0.07549626,2556.0,2555.9,2.8033]
[1748105166644,0.07549626,2556.0,2555.9,7.8033]
[1748105167249,2.63204,2557.2,2555.9,7.8033]
[1748105167250,3.2078,2557.7,2555.9,7.0211]
[1748105167450,0.78175,2557.4,2557.3,3.2078]
[1748105167959,3.99543016,2557.4,2557.3,3.2078]
[1748105168256,0.78184,2557.1,2557.0,3.2078]
[1748105170559,2.0982,2557.3,2557.0,5.27226]
[1748105170754,5.31188016,2557.3,2557.0,5.27226]
[1748105170956,0.78181,2557.2,2557.0,5.27226]
[1748105171255,0.78184,2557.1,2557.0,4.4904]
[1748105171458,4.53008016,2557.3,2557.0,4.4904]
[1748105171459,0.78183,2557.2,2557.0,5.27225]
[1748105171654,2.09819,2557.3,2557.1,0.78184]
[1748105171956,3.2078,2558.2,2557.2,16.5516]
[1748105172156,0.78159,2557.9,2557.8,3.2078]
[1748105173853,0.78159,2557.9,2557.8,4.6107]
[1748105174062,0.78157,2558.0,2557.8,4.6107]
[1748105174249,0.78159,2557.9,2557.8,4.6107]
[1748105175954,0.7872543,2557.9,2557.8,4.6107]
[1748105178660,0.0056643,2557.9,2557.8,5.39232]
[1748105178862,0.7872543,2557.9,2557.8,4.6107]
[1748105179259,0.0056643,2557.9,2557.8,4.6107]
[1748105179661,0.08116056,2557.9,2557.8,4.6107]
[1748105180260,0.08116056,2557.9,2557.8,5.39232]
[1748105180650,0.08116056,2557.9,2557.8,10.39232]
[1748105183560,0.08116056,2557.9,2557.8,26.21132]
[1748105183966,0.08116056,2557.9,2557.8,10.39232]
[1748105184164,0.08116056,2557.9,2557.8,26.21132]
[1748105184366,0.08116056,2557.9,2557.8,21.21132]
[1748105184666,0.08116056,2557.9,2557.8,26.21132]
[1748105188460,0.08116056,2557.9,2557.8,21.21132]
[1748105190054,0.08116056,2557.9,2557.8,21.78968144]
[1748105190660,0.08116056,2557.9,2557.8,26.78968144]
[1748105192168,0.08116056,2557.9,2557.8,10.97068144]
[1748105192360,0.08116056,2557.9,2557.8,21.78568144]
[1748105192760,0.08116056,2557.9,2557.8,22.35056583]
[1748105193061,0.08116056,2557.9,2557.8,6.53556583]
[1748105193265,0.08116056,2557.9,2557.8,22.35056583]
[1748105193569,0.08116056,2557.9,2557.8,6.53556583]
[1748105193772,0.86275056,2557.9,2557.8,5.75394583]
[1748105193964,0.86275056,2557.9,2557.8,20.16604583]
[1748105194371,0.86275056,2557.9,2557.8,19.60116144]
[1748105194566,0.08116056,2557.9,2557.8,20.38279144]
[1748105195165,0.08116056,2557.9,2557.8,25.38279144]
[1748105195367,0.78144,2558.4,2558.2,0.78148]
[1748105195568,2.08724,2558.4,2558.3,4.5065]
[1748105195872,5.30092016,2558.4,2558.3,3.2078]
[1748105196972,5.30092016,2558.4,2558.3,3.78616144]